[Event "Titled Tuesday Blitz February 07 Early 2023"]
[White "Song, Julien"]
[Black "Wagh Suyog"]
[WhiteFideId "659487"]
[BlackFideId "25071688"]
[WhiteElo "2350"]
[BlackElo "2313"]
[Result "1-0"]
[Round "09"]
[TimeControl "180+2"]
[Date "2023.02.07"]
[WhiteClock "0:01:56"]
[BlackClock "0:01:17"]

1. d4 {[%clk 0:03:00]}  Nf6 {[%clk 0:02:55]} 2. c4 {[%clk 0:03:01]}  g6 {[%clk 0:02:56]} 3. Nc3 {[%clk 0:03:01]}  Bg7 {[%clk 0:02:56]} 4. Nf3 {[%clk 0:03:01]}  O-O {[%clk 0:02:57]} 5. Bg5 {[%clk 0:03:02]}  d6 {[%clk 0:02:55]} 6. e3 {[%clk 0:03:02]}  Nbd7 {[%clk 0:02:55]} 7. Be2 {[%clk 0:03:03]}  e5 {[%clk 0:02:55]} 8. O-O {[%clk 0:03:03]}  h6 {[%clk 0:02:56]} 9. Bh4 {[%clk 0:03:03]}  Re8 {[%clk 0:02:52]} 10. Qc2 {[%clk 0:03:03]}  exd4 {[%clk 0:02:40]} 11. exd4 {[%clk 0:03:02]}  g5 {[%clk 0:02:40]} 12. Bg3 {[%clk 0:03:01]}  Nh5 {[%clk 0:02:41]} 13. Bd3 {[%clk 0:02:52]}  Nxg3 {[%clk 0:02:32]} 14. fxg3 {[%clk 0:02:51]}  Nf8 {[%clk 0:02:28]} 15. Ne4 {[%clk 0:02:45]}  c6 {[%clk 0:02:15]} 16. d5 {[%clk 0:02:41]}  c5 {[%clk 0:02:14]} 17. h4 {[%clk 0:02:31]}  g4 {[%clk 0:02:12]} 18. Nh2 {[%clk 0:02:25]}  Ng6 {[%clk 0:02:09]} 19. Nf6+ {[%clk 0:02:18]}  Bxf6 {[%clk 0:02:01]} 20. Bxg6 {[%clk 0:02:19]}  Kg7 {[%clk 0:01:42]} 21. Bxf7 {[%clk 0:02:17]}  Kxf7 {[%clk 0:01:16]} 22. Qh7+ {[%clk 0:02:17]}  Kf8 {[%clk 0:01:17]} 23. Qg6 {[%clk 0:01:56]} 1-0


[Site "https://www.chess.com"]

[Event "Titled Tuesday Blitz February 07 Early 2023"]
[White "Sukandar, Irine Kharisma"]
[Black "Csonka, Balazs"]
[WhiteFideId "7101937"]
[BlackFideId "742910"]
[WhiteElo "2390"]
[BlackElo "2496"]
[Result "0-1"]
[Round "09"]
[TimeControl "180+2"]
[Date "2023.02.07"]
[WhiteClock "0:00:04"]
[BlackClock "0:00:23"]

1. d4 {[%clk 0:02:55]}  Nf6 {[%clk 0:02:57]} 2. Bf4 {[%clk 0:02:55]}  d5 {[%clk 0:02:52]} 3. e3 {[%clk 0:02:50]}  c5 {[%clk 0:02:52]} 4. Nd2 {[%clk 0:02:48]}  Nc6 {[%clk 0:02:49]} 5. Ngf3 {[%clk 0:02:47]}  cxd4 {[%clk 0:02:38]} 6. exd4 {[%clk 0:02:47]}  e6 {[%clk 0:02:38]} 7. Bb5 {[%clk 0:02:38]}  Bd6 {[%clk 0:02:37]} 8. Bxd6 {[%clk 0:02:25]}  Qxd6 {[%clk 0:02:36]} 9. O-O {[%clk 0:02:25]}  O-O {[%clk 0:02:36]} 10. Re1 {[%clk 0:02:24]}  Bd7 {[%clk 0:02:08]} 11. c3 {[%clk 0:02:20]}  Rab8 {[%clk 0:02:01]} 12. Qe2 {[%clk 0:02:20]}  Rfc8 {[%clk 0:01:55]} 13. Bd3 {[%clk 0:02:12]}  Na5 {[%clk 0:01:27]} 14. Ne5 {[%clk 0:02:11]}  b5 {[%clk 0:01:26]} 15. Ndf3 {[%clk 0:02:01]}  b4 {[%clk 0:01:13]} 16. Ng5 {[%clk 0:01:56]}  Be8 {[%clk 0:01:13]} 17. Rac1 {[%clk 0:00:55]}  bxc3 {[%clk 0:01:10]} 18. bxc3 {[%clk 0:00:55]}  h6 {[%clk 0:01:06]} 19. Ngf3 {[%clk 0:00:54]}  Qa3 {[%clk 0:01:05]} 20. Qe3 {[%clk 0:00:50]}  Kf8 {[%clk 0:00:51]} 21. g4 {[%clk 0:00:37]}  Rxc3 {[%clk 0:00:45]} 22. Rxc3 {[%clk 0:00:35]}  Qxc3 {[%clk 0:00:46]} 23. g5 {[%clk 0:00:20]}  hxg5 {[%clk 0:00:47]} 24. Nxg5 {[%clk 0:00:21]}  Nc4 {[%clk 0:00:44]} 25. Qh3 {[%clk 0:00:08]}  Qxe1+ {[%clk 0:00:43]} 26. Kg2 {[%clk 0:00:04]}  Rb2 {[%clk 0:00:23]} 0-1


[Site "https://www.chess.com"]

[Event "Titled Tuesday Blitz February 07 Early 2023"]
[White "Papasimakopoulos, Alexandros"]
[Black "Hirneise, Jens"]
[WhiteFideId "4244125"]
[BlackFideId "24614734"]
[WhiteElo "2401"]
[BlackElo "2277"]
[Result "1-0"]
[Round "09"]
[TimeControl "180+2"]
[Date "2023.02.07"]
[WhiteClock "0:00:39"]
[BlackClock "0:00:42"]

1. d4 {[%clk 0:02:56]}  d5 {[%clk 0:02:59]} 2. Nf3 {[%clk 0:02:56]}  Nf6 {[%clk 0:02:55]} 3. Bf4 {[%clk 0:02:48]}  Bf5 {[%clk 0:02:48]} 4. e3 {[%clk 0:02:47]}  e6 {[%clk 0:02:47]} 5. c4 {[%clk 0:02:47]}  Bb4+ {[%clk 0:02:47]} 6. Nc3 {[%clk 0:02:46]}  O-O {[%clk 0:02:45]} 7. Qb3 {[%clk 0:02:45]}  Nc6 {[%clk 0:02:43]} 8. Be2 {[%clk 0:02:41]}  b6 {[%clk 0:02:35]} 9. O-O {[%clk 0:02:37]}  Bxc3 {[%clk 0:02:34]} 10. Qxc3 {[%clk 0:02:31]}  Ne4 {[%clk 0:02:33]} 11. Qc1 {[%clk 0:02:30]}  Rc8 {[%clk 0:02:27]} 12. cxd5 {[%clk 0:02:23]}  Qxd5 {[%clk 0:02:28]} 13. Ba6 {[%clk 0:02:16]}  Nb4 {[%clk 0:02:19]} 14. Bxc8 {[%clk 0:02:14]}  Rxc8 {[%clk 0:02:20]} 15. Rd1 {[%clk 0:02:05]}  h6 {[%clk 0:02:11]} 16. a3 {[%clk 0:02:01]}  Nc6 {[%clk 0:02:09]} 17. b4 {[%clk 0:01:57]}  g5 {[%clk 0:02:05]} 18. Bg3 {[%clk 0:01:57]}  h5 {[%clk 0:02:05]} 19. h3 {[%clk 0:01:31]}  Nxg3 {[%clk 0:01:56]} 20. fxg3 {[%clk 0:01:32]}  g4 {[%clk 0:01:55]} 21. hxg4 {[%clk 0:01:32]}  Bxg4 {[%clk 0:01:55]} 22. Rf1 {[%clk 0:01:31]}  f6 {[%clk 0:01:44]} 23. Qc2 {[%clk 0:01:25]}  Kg7 {[%clk 0:01:43]} 24. Nh4 {[%clk 0:01:24]}  Ne7 {[%clk 0:01:42]} 25. Rac1 {[%clk 0:01:21]}  c5 {[%clk 0:01:35]} 26. bxc5 {[%clk 0:01:19]}  bxc5 {[%clk 0:01:35]} 27. dxc5 {[%clk 0:01:20]}  Qe5 {[%clk 0:01:34]} 28. Qf2 {[%clk 0:01:17]}  Nd5 {[%clk 0:01:30]} 29. Rfe1 {[%clk 0:01:12]}  f5 {[%clk 0:01:28]} 30. c6 {[%clk 0:01:08]}  Rc7 {[%clk 0:01:28]} 31. Rc4 {[%clk 0:01:05]}  Nb6 {[%clk 0:01:22]} 32. Rc2 {[%clk 0:01:00]}  Qe4 {[%clk 0:01:21]} 33. Qf4 {[%clk 0:00:50]}  Qxf4 {[%clk 0:01:06]} 34. gxf4 {[%clk 0:00:49]}  Kf6 {[%clk 0:01:07]} 35. Nf3 {[%clk 0:00:46]}  Bxf3 {[%clk 0:01:05]} 36. gxf3 {[%clk 0:00:47]}  Nd5 {[%clk 0:01:02]} 37. Kf2 {[%clk 0:00:46]}  Ne7 {[%clk 0:00:55]} 38. Rh1 {[%clk 0:00:43]}  Kg6 {[%clk 0:00:48]} 39. Rg1+ {[%clk 0:00:43]}  Kf6 {[%clk 0:00:44]} 40. Rg5 {[%clk 0:00:43]}  Rxc6 {[%clk 0:00:41]} 41. Rxc6 {[%clk 0:00:42]}  Nxc6 {[%clk 0:00:42]} 42. Rxh5 {[%clk 0:00:42]}  Ke7 {[%clk 0:00:42]} 43. e4 {[%clk 0:00:39]} 1-0


[Site "https://www.chess.com"]

[Event "Titled Tuesday Blitz February 07 Early 2023"]
[White "Vlassov, Nikolai"]
[Black "Ortega Amarelle, Mariano"]
[WhiteFideId "4103360"]
[BlackFideId "3504301"]
[WhiteElo "2283"]
[BlackElo "2472"]
[Result "1-0"]
[Round "09"]
[TimeControl "180+2"]
[Date "2023.02.07"]
[WhiteClock "0:00:15"]
[BlackClock "0:00:02"]

1. e4 {[%clk 0:03:00]}  e5 {[%clk 0:02:56]} 2. Bc4 {[%clk 0:03:00]}  Nf6 {[%clk 0:02:54]} 3. d3 {[%clk 0:03:00]}  c6 {[%clk 0:02:54]} 4. Nf3 {[%clk 0:02:59]}  d5 {[%clk 0:02:54]} 5. Bb3 {[%clk 0:03:00]}  Bd6 {[%clk 0:02:47]} 6. Nc3 {[%clk 0:02:59]}  O-O {[%clk 0:02:32]} 7. exd5 {[%clk 0:02:57]}  cxd5 {[%clk 0:02:31]} 8. Bxd5 {[%clk 0:02:57]}  Nxd5 {[%clk 0:02:25]} 9. Nxd5 {[%clk 0:02:57]}  Bg4 {[%clk 0:02:12]} 10. Ne3 {[%clk 0:02:55]}  Bh5 {[%clk 0:02:10]} 11. Nf5 {[%clk 0:02:54]}  Bc7 {[%clk 0:02:07]} 12. Ng3 {[%clk 0:02:54]}  Bg6 {[%clk 0:02:05]} 13. O-O {[%clk 0:02:45]}  Nc6 {[%clk 0:02:02]} 14. Re1 {[%clk 0:02:43]}  h6 {[%clk 0:01:56]} 15. Bd2 {[%clk 0:02:41]}  f5 {[%clk 0:01:53]} 16. Bc3 {[%clk 0:02:39]}  Re8 {[%clk 0:01:50]} 17. Qd2 {[%clk 0:02:29]}  b5 {[%clk 0:01:09]} 18. a3 {[%clk 0:02:22]}  a5 {[%clk 0:01:04]} 19. b3 {[%clk 0:02:06]}  Rc8 {[%clk 0:00:45]} 20. Re2 {[%clk 0:02:03]}  e4 {[%clk 0:00:31]} 21. dxe4 {[%clk 0:02:00]}  fxe4 {[%clk 0:00:32]} 22. Nd4 {[%clk 0:01:50]}  Nxd4 {[%clk 0:00:19]} 23. Qxd4 {[%clk 0:01:47]}  Qxd4 {[%clk 0:00:19]} 24. Bxd4 {[%clk 0:01:47]}  h5 {[%clk 0:00:17]} 25. Nf1 {[%clk 0:01:40]}  Bf4 {[%clk 0:00:13]} 26. Be3 {[%clk 0:01:31]}  Be5 {[%clk 0:00:13]} 27. Rd1 {[%clk 0:01:31]}  h4 {[%clk 0:00:13]} 28. Rd5 {[%clk 0:01:27]}  b4 {[%clk 0:00:11]} 29. Rxa5 {[%clk 0:01:25]}  bxa3 {[%clk 0:00:09]} 30. Rxa3 {[%clk 0:01:21]}  Bc3 {[%clk 0:00:09]} 31. g4 {[%clk 0:01:13]}  Red8 {[%clk 0:00:06]} 32. Kg2 {[%clk 0:00:59]}  Rd1 {[%clk 0:00:03]} 33. h3 {[%clk 0:00:59]}  Bf7 {[%clk 0:00:02]} 34. Bd2 {[%clk 0:00:52]}  Bb2 {[%clk 0:00:01]} 35. Ra2 {[%clk 0:00:46]}  Rxc2 {[%clk 0:00:02]} 36. Ne3 {[%clk 0:00:46]}  Rdxd2 {[%clk 0:00:02]} 37. Nxc2 {[%clk 0:00:40]}  Rxe2 {[%clk 0:00:02]} 38. Rxb2 {[%clk 0:00:40]}  e3 {[%clk 0:00:03]} 39. Kf3 {[%clk 0:00:35]}  Rxf2+ {[%clk 0:00:03]} 40. Kxe3 {[%clk 0:00:35]}  Rh2 {[%clk 0:00:04]} 41. Kf4 {[%clk 0:00:33]}  Rxh3 {[%clk 0:00:05]} 42. Nd4 {[%clk 0:00:32]}  Rd3 {[%clk 0:00:04]} 43. Nf3 {[%clk 0:00:29]}  h3 {[%clk 0:00:04]} 44. b4 {[%clk 0:00:25]}  Bd5 {[%clk 0:00:03]} 45. Ne5 {[%clk 0:00:22]}  g5+ {[%clk 0:00:02]} 46. Kxg5 {[%clk 0:00:20]}  Rb3 {[%clk 0:00:02]} 47. Rd2 {[%clk 0:00:15]} 1-0


[Site "https://www.chess.com"]

[Event "Titled Tuesday Blitz February 07 Early 2023"]
[White "Manukyan, Sargis A."]
[Black "Cella, Glaucio Dalla Cortt"]
[WhiteFideId "13303970"]
[BlackFideId "2119455"]
[WhiteElo "2158"]
[BlackElo "1894"]
[Result "1/2-1/2"]
[Round "09"]
[TimeControl "180+2"]
[Date "2023.02.07"]
[WhiteClock "0:00:16"]
[BlackClock "0:00:43"]

1. d4 {[%clk 0:02:59]}  Nf6 {[%clk 0:02:58]} 2. c4 {[%clk 0:03:00]}  e5 {[%clk 0:02:58]} 3. dxe5 {[%clk 0:02:57]}  Ng4 {[%clk 0:02:59]} 4. Nf3 {[%clk 0:02:58]}  Bc5 {[%clk 0:02:55]} 5. e3 {[%clk 0:02:57]}  Nc6 {[%clk 0:02:53]} 6. Be2 {[%clk 0:02:57]}  Ncxe5 {[%clk 0:02:49]} 7. Nxe5 {[%clk 0:02:58]}  Nxe5 {[%clk 0:02:48]} 8. O-O {[%clk 0:02:59]}  O-O {[%clk 0:02:49]} 9. Nc3 {[%clk 0:02:58]}  Re8 {[%clk 0:02:47]} 10. b3 {[%clk 0:02:58]}  a5 {[%clk 0:02:47]} 11. Bb2 {[%clk 0:02:52]}  Ra6 {[%clk 0:02:45]} 12. Ne4 {[%clk 0:02:51]}  Bf8 {[%clk 0:02:27]} 13. f4 {[%clk 0:02:39]}  Ng4 {[%clk 0:02:15]} 14. Bxg4 {[%clk 0:02:13]}  Rxe4 {[%clk 0:02:15]} 15. Qd3 {[%clk 0:02:06]}  Re8 {[%clk 0:02:12]} 16. e4 {[%clk 0:01:54]}  Rh6 {[%clk 0:02:12]} 17. g3 {[%clk 0:01:49]}  Bc5+ {[%clk 0:02:12]} 18. Kg2 {[%clk 0:01:48]}  d5 {[%clk 0:02:11]} 19. Qc3 {[%clk 0:01:24]}  d4 {[%clk 0:02:06]} 20. Qf3 {[%clk 0:01:24]}  Bxg4 {[%clk 0:02:02]} 21. Qxg4 {[%clk 0:01:25]}  Rxe4 {[%clk 0:02:02]} 22. Rae1 {[%clk 0:01:21]}  Qe8 {[%clk 0:02:02]} 23. Rxe4 {[%clk 0:00:55]}  Qxe4+ {[%clk 0:02:03]} 24. Qf3 {[%clk 0:00:54]}  Qxf3+ {[%clk 0:01:53]} 25. Rxf3 {[%clk 0:00:55]}  Re6 {[%clk 0:01:53]} 26. Kf1 {[%clk 0:00:48]}  f5 {[%clk 0:01:54]} 27. Rd3 {[%clk 0:00:47]}  Kf7 {[%clk 0:01:50]} 28. Rd2 {[%clk 0:00:45]}  Bb4 {[%clk 0:01:36]} 29. Re2 {[%clk 0:00:35]}  Re3 {[%clk 0:01:29]} 30. Rxe3 {[%clk 0:00:27]}  dxe3 {[%clk 0:01:30]} 31. Ke2 {[%clk 0:00:27]}  Bc5 {[%clk 0:01:26]} 32. Bc1 {[%clk 0:00:26]}  Ke6 {[%clk 0:01:25]} 33. Bxe3 {[%clk 0:00:27]}  Bxe3 {[%clk 0:01:26]} 34. Kxe3 {[%clk 0:00:28]}  b6 {[%clk 0:01:13]} 35. Kd4 {[%clk 0:00:26]}  Kd6 {[%clk 0:01:13]} 36. a3 {[%clk 0:00:25]}  c5+ {[%clk 0:01:06]} 37. Kc3 {[%clk 0:00:25]}  g6 {[%clk 0:01:07]} 38. b4 {[%clk 0:00:25]}  cxb4+ {[%clk 0:01:02]} 39. axb4 {[%clk 0:00:24]}  axb4+ {[%clk 0:01:03]} 40. Kxb4 {[%clk 0:00:24]}  Kc6 {[%clk 0:01:04]} 41. h3 {[%clk 0:00:17]}  h6 {[%clk 0:01:04]} 42. Kb3 {[%clk 0:00:17]}  Kc5 {[%clk 0:01:03]} 43. Kc3 {[%clk 0:00:17]}  h5 {[%clk 0:01:01]} 44. h4 {[%clk 0:00:13]}  Kc6 {[%clk 0:01:01]} 45. Kb4 {[%clk 0:00:13]}  Kc7 {[%clk 0:00:53]} 46. Kb5 {[%clk 0:00:13]}  Kb7 {[%clk 0:00:54]} 47. c5 {[%clk 0:00:14]}  bxc5 {[%clk 0:00:44]} 48. Kxc5 {[%clk 0:00:14]}  Kc7 {[%clk 0:00:45]} 49. Kd5 {[%clk 0:00:15]}  Kd7 {[%clk 0:00:45]} 50. Ke5 {[%clk 0:00:16]}  Ke7 {[%clk 0:00:46]} 51. Kd5 {[%clk 0:00:15]}  Kd7 {[%clk 0:00:46]} 52. Kc5 {[%clk 0:00:16]}  Kc7 {[%clk 0:00:42]} 53. Kd5 {[%clk 0:00:16]}  Kd7 {[%clk 0:00:43]} 1/2-1/2


[Site "https://www.chess.com"]

[Event "Titled Tuesday Blitz February 07 Early 2023"]
[White "Tillyaev, Ulugbek"]
[Black "Aarav Dengla"]
[WhiteFideId "14202441"]
[BlackFideId "45059756"]
[WhiteElo "2287"]
[BlackElo "2343"]
[Result "1-0"]
[Round "09"]
[TimeControl "180+2"]
[Date "2023.02.07"]
[WhiteClock "0:00:24"]
[BlackClock "0:00:02"]

1. e4 {[%clk 0:03:00]}  c5 {[%clk 0:02:59]} 2. d4 {[%clk 0:03:00]}  cxd4 {[%clk 0:02:59]} 3. c3 {[%clk 0:03:01]}  Nf6 {[%clk 0:02:57]} 4. e5 {[%clk 0:03:01]}  Nd5 {[%clk 0:02:58]} 5. Qxd4 {[%clk 0:03:01]}  e6 {[%clk 0:02:57]} 6. Nf3 {[%clk 0:03:02]}  Nc6 {[%clk 0:02:57]} 7. Qg4 {[%clk 0:03:01]}  h5 {[%clk 0:02:54]} 8. Qg3 {[%clk 0:03:01]}  Qc7 {[%clk 0:02:54]} 9. Nbd2 {[%clk 0:02:59]}  h4 {[%clk 0:02:53]} 10. Qg5 {[%clk 0:02:54]}  b6 {[%clk 0:02:50]} 11. Nc4 {[%clk 0:02:45]}  Bb7 {[%clk 0:02:40]} 12. Nxh4 {[%clk 0:02:26]}  b5 {[%clk 0:01:28]} 13. Nd6+ {[%clk 0:02:20]}  Bxd6 {[%clk 0:01:27]} 14. exd6 {[%clk 0:02:20]}  Qxd6 {[%clk 0:01:28]} 15. Bxb5 {[%clk 0:02:12]}  a6 {[%clk 0:01:03]} 16. Be2 {[%clk 0:02:06]}  Nce7 {[%clk 0:00:59]} 17. Nf3 {[%clk 0:02:04]}  f6 {[%clk 0:00:52]} 18. Qd2 {[%clk 0:01:58]}  Qc7 {[%clk 0:00:47]} 19. c4 {[%clk 0:01:52]}  Nb6 {[%clk 0:00:38]} 20. Qa5 {[%clk 0:01:48]}  Rc8 {[%clk 0:00:36]} 21. b3 {[%clk 0:01:43]}  Nf5 {[%clk 0:00:32]} 22. Bb2 {[%clk 0:01:38]}  Qd6 {[%clk 0:00:25]} 23. Rd1 {[%clk 0:01:36]}  Qc7 {[%clk 0:00:21]} 24. h3 {[%clk 0:01:33]}  Nh4 {[%clk 0:00:17]} 25. Nxh4 {[%clk 0:01:20]}  Rxh4 {[%clk 0:00:18]} 26. O-O {[%clk 0:01:08]}  Kf7 {[%clk 0:00:15]} 27. Bd4 {[%clk 0:00:58]}  Na8 {[%clk 0:00:15]} 28. Qxc7 {[%clk 0:00:58]}  Nxc7 {[%clk 0:00:16]} 29. Bb6 {[%clk 0:00:57]}  Ke7 {[%clk 0:00:16]} 30. Bc5+ {[%clk 0:00:56]}  Kd8 {[%clk 0:00:14]} 31. Bf8 {[%clk 0:00:55]}  Ne8 {[%clk 0:00:13]} 32. Rd2 {[%clk 0:00:51]}  Rh8 {[%clk 0:00:14]} 33. Bb4 {[%clk 0:00:49]}  Bc6 {[%clk 0:00:11]} 34. Rfd1 {[%clk 0:00:49]}  Rb8 {[%clk 0:00:11]} 35. Ba5+ {[%clk 0:00:49]}  Ke7 {[%clk 0:00:12]} 36. Bf3 {[%clk 0:00:48]}  Rb7 {[%clk 0:00:07]} 37. Bxc6 {[%clk 0:00:47]}  dxc6 {[%clk 0:00:08]} 38. Rd8 {[%clk 0:00:48]}  Rf8 {[%clk 0:00:07]} 39. Rc8 {[%clk 0:00:48]}  Kf7 {[%clk 0:00:07]} 40. Rdd8 {[%clk 0:00:45]}  g5 {[%clk 0:00:06]} 41. Rxc6 {[%clk 0:00:38]}  Ng7 {[%clk 0:00:05]} 42. Rxf8+ {[%clk 0:00:38]}  Kxf8 {[%clk 0:00:06]} 43. Rxa6 {[%clk 0:00:39]}  Rd7 {[%clk 0:00:04]} 44. Bb4+ {[%clk 0:00:37]}  Kf7 {[%clk 0:00:04]} 45. Rd6 {[%clk 0:00:37]}  Rb7 {[%clk 0:00:05]} 46. Bc3 {[%clk 0:00:36]}  Nf5 {[%clk 0:00:06]} 47. Rd2 {[%clk 0:00:36]}  Ra7 {[%clk 0:00:06]} 48. a4 {[%clk 0:00:36]}  e5 {[%clk 0:00:07]} 49. a5 {[%clk 0:00:35]}  Ke6 {[%clk 0:00:07]} 50. b4 {[%clk 0:00:36]}  Nd6 {[%clk 0:00:08]} 51. b5 {[%clk 0:00:31]}  Nxc4 {[%clk 0:00:08]} 52. Ra2 {[%clk 0:00:31]}  Nd6 {[%clk 0:00:06]} 53. Rb2 {[%clk 0:00:27]}  Nc4 {[%clk 0:00:05]} 54. Ra2 {[%clk 0:00:19]}  Nd6 {[%clk 0:00:05]} 55. b6 {[%clk 0:00:20]}  Ra6 {[%clk 0:00:04]} 56. Bb4 {[%clk 0:00:20]}  Nb7 {[%clk 0:00:05]} 57. Kf1 {[%clk 0:00:19]}  Kd5 {[%clk 0:00:05]} 58. Ke2 {[%clk 0:00:18]}  Kc4 {[%clk 0:00:06]} 59. Be7 {[%clk 0:00:17]}  f5 {[%clk 0:00:04]} 60. Bxg5 {[%clk 0:00:17]}  Kb3 {[%clk 0:00:05]} 61. Ra1 {[%clk 0:00:17]}  Kb2 {[%clk 0:00:05]} 62. Ra4 {[%clk 0:00:16]}  Kb3 {[%clk 0:00:05]} 63. Ra1 {[%clk 0:00:16]}  Kb2 {[%clk 0:00:05]} 64. Rd1 {[%clk 0:00:16]}  Nxa5 {[%clk 0:00:05]} 65. Rd5 {[%clk 0:00:16]}  Nc4 {[%clk 0:00:04]} 66. Rb5+ {[%clk 0:00:15]}  Kc3 {[%clk 0:00:04]} 67. b7 {[%clk 0:00:16]}  Ra2+ {[%clk 0:00:04]} 68. Kf3 {[%clk 0:00:16]}  e4+ {[%clk 0:00:03]} 69. Kg3 {[%clk 0:00:17]}  Nd6 {[%clk 0:00:03]} 70. b8=Q {[%clk 0:00:17]}  Nxb5 {[%clk 0:00:03]} 71. Qxb5 {[%clk 0:00:17]}  Ra3 {[%clk 0:00:04]} 72. Qxf5 {[%clk 0:00:17]}  Kb2+ {[%clk 0:00:05]} 73. Kh2 {[%clk 0:00:17]}  Ra4 {[%clk 0:00:04]} 74. Bf6+ {[%clk 0:00:18]}  Ka2 {[%clk 0:00:04]} 75. h4 {[%clk 0:00:18]}  e3 {[%clk 0:00:03]} 76. fxe3 {[%clk 0:00:19]}  Rb4 {[%clk 0:00:04]} 77. Qc2+ {[%clk 0:00:19]}  Ka3 {[%clk 0:00:03]} 78. Qc3+ {[%clk 0:00:19]}  Ka4 {[%clk 0:00:02]} 79. Qxb4+ {[%clk 0:00:20]}  Kxb4 {[%clk 0:00:03]} 80. h5 {[%clk 0:00:20]}  Kb3 {[%clk 0:00:04]} 81. h6 {[%clk 0:00:21]}  Kc2 {[%clk 0:00:05]} 82. h7 {[%clk 0:00:22]}  Kd1 {[%clk 0:00:05]} 83. h8=Q {[%clk 0:00:23]}  Ke1 {[%clk 0:00:06]} 84. Qd8 {[%clk 0:00:24]}  Ke2 {[%clk 0:00:07]} 85. e4 {[%clk 0:00:24]}  Ke3 {[%clk 0:00:07]} 86. e5 {[%clk 0:00:25]}  Ke2 {[%clk 0:00:08]} 87. e6 {[%clk 0:00:26]}  Ke1 {[%clk 0:00:08]} 88. e7 {[%clk 0:00:27]}  Kf2 {[%clk 0:00:09]} 89. Bh4+ {[%clk 0:00:25]}  Ke3 {[%clk 0:00:02]} 90. e8=Q+ {[%clk 0:00:24]} 1-0


[Site "https://www.chess.com"]

[Event "Titled Tuesday Blitz February 07 Early 2023"]
[White "Sharafiev, Azat"]
[Black "Souleidis, Georgios"]
[WhiteFideId "4186214"]
[BlackFideId "4206827"]
[WhiteElo "2427"]
[BlackElo "2419"]
[Result "0-1"]
[Round "09"]
[TimeControl "180+2"]
[Date "2023.02.07"]
[WhiteClock "0:00:03"]
[BlackClock "0:00:13"]

1. e4 {[%clk 0:03:00]}  c5 {[%clk 0:02:59]} 2. Nf3 {[%clk 0:03:00]}  e6 {[%clk 0:02:59]} 3. d4 {[%clk 0:03:01]}  cxd4 {[%clk 0:03:00]} 4. Nxd4 {[%clk 0:03:01]}  Nf6 {[%clk 0:03:01]} 5. Bd3 {[%clk 0:02:58]}  Nc6 {[%clk 0:02:55]} 6. Be3 {[%clk 0:02:56]}  d5 {[%clk 0:02:54]} 7. exd5 {[%clk 0:02:53]}  Nxd5 {[%clk 0:02:49]} 8. Nxc6 {[%clk 0:02:53]}  bxc6 {[%clk 0:02:42]} 9. Bd2 {[%clk 0:02:54]}  Bd6 {[%clk 0:02:36]} 10. O-O {[%clk 0:02:53]}  O-O {[%clk 0:02:35]} 11. Qh5 {[%clk 0:02:49]}  g6 {[%clk 0:02:34]} 12. Qf3 {[%clk 0:02:44]}  Rb8 {[%clk 0:02:16]} 13. Nc3 {[%clk 0:02:09]}  Rxb2 {[%clk 0:02:05]} 14. Ne4 {[%clk 0:02:09]}  Be5 {[%clk 0:02:04]} 15. Rfb1 {[%clk 0:01:44]}  Qb6 {[%clk 0:01:48]} 16. c4 {[%clk 0:01:29]}  Nb4 {[%clk 0:01:10]} 17. Rxb2 {[%clk 0:01:20]}  Bxb2 {[%clk 0:01:10]} 18. Rb1 {[%clk 0:01:20]}  Nxd3 {[%clk 0:01:10]} 19. Qxd3 {[%clk 0:01:18]}  Qd4 {[%clk 0:01:02]} 20. Qc2 {[%clk 0:01:10]}  Ba1 {[%clk 0:00:46]} 21. Rd1 {[%clk 0:00:42]}  Qg7 {[%clk 0:00:42]} 22. Bb4 {[%clk 0:00:27]}  Re8 {[%clk 0:00:35]} 23. Qa4 {[%clk 0:00:23]}  f5 {[%clk 0:00:26]} 24. Nd6 {[%clk 0:00:20]}  Rd8 {[%clk 0:00:24]} 25. Qxc6 {[%clk 0:00:20]}  Bb7 {[%clk 0:00:22]} 26. Qc5 {[%clk 0:00:18]}  Bf6 {[%clk 0:00:20]} 27. Qxa7 {[%clk 0:00:17]}  Be4 {[%clk 0:00:17]} 28. Qxg7+ {[%clk 0:00:16]}  Bxg7 {[%clk 0:00:17]} 29. c5 {[%clk 0:00:15]}  Bc6 {[%clk 0:00:17]} 30. g3 {[%clk 0:00:12]}  e5 {[%clk 0:00:18]} 31. a3 {[%clk 0:00:12]}  e4 {[%clk 0:00:18]} 32. Rc1 {[%clk 0:00:10]}  Ra8 {[%clk 0:00:18]} 33. Rd1 {[%clk 0:00:10]}  Bb2 {[%clk 0:00:17]} 34. Rb1 {[%clk 0:00:08]}  Bxa3 {[%clk 0:00:15]} 35. Bxa3 {[%clk 0:00:08]}  Rxa3 {[%clk 0:00:16]} 36. Rb6 {[%clk 0:00:09]}  Ra1+ {[%clk 0:00:15]} 37. Kg2 {[%clk 0:00:08]}  e3+ {[%clk 0:00:14]} 38. Rxc6 {[%clk 0:00:08]}  e2 {[%clk 0:00:15]} 39. Rc8+ {[%clk 0:00:08]}  Kg7 {[%clk 0:00:15]} 40. Rc7+ {[%clk 0:00:08]}  Kf6 {[%clk 0:00:14]} 41. Ne8+ {[%clk 0:00:08]}  Ke6 {[%clk 0:00:14]} 42. Ng7+ {[%clk 0:00:07]}  Kd5 {[%clk 0:00:14]} 43. Rd7+ {[%clk 0:00:07]}  Kxc5 {[%clk 0:00:14]} 44. Ne6+ {[%clk 0:00:07]}  Kb6 {[%clk 0:00:14]} 45. Rd6+ {[%clk 0:00:06]}  Ka7 {[%clk 0:00:14]} 46. Rd7+ {[%clk 0:00:06]}  Kb8 {[%clk 0:00:13]} 47. Rd8+ {[%clk 0:00:06]}  Kb7 {[%clk 0:00:14]} 48. Rd7+ {[%clk 0:00:06]}  Kc8 {[%clk 0:00:15]} 49. Rc7+ {[%clk 0:00:06]}  Kb8 {[%clk 0:00:15]} 50. Re7 {[%clk 0:00:03]}  e1=Q {[%clk 0:00:16]} 51. Re8+ {[%clk 0:00:03]}  Ka7 {[%clk 0:00:15]} 52. Re7+ {[%clk 0:00:03]}  Kb6 {[%clk 0:00:13]} 0-1


[Site "https://www.chess.com"]